fUST/lending_fUST_20240105
["ID","MTS","AMOUNT","RATE_DAILY","PERIOD"]
[310275446,1704449438548,-1321.39393737,0.00036998,4]
[310275447,1704449438558,-1087.2919038,0.00036999,4]
[310275448,1704449438567,-30269.00406112,0.00037,2]
[310275449,1704449438576,-1000.0,0.00037,37]
[310275450,1704449438585,-1181.95118505,0.00037,7]
[310275451,1704449438594,-1504.931275,0.00037,2]
[310275452,1704449438602,-151.0,0.0003702,2]
[310275453,1704449438611,-12206.9372436,0.0003705,5]
[310275454,1704449438621,-4000.0,0.00037075,2]
[310275455,1704449438631,-155.0,0.00037256,2]
[310275456,1704449438640,-500.0,0.00037669,4]
[310275457,1704449438649,-500.0,0.00037669,4]
[310275458,1704449438658,-176.48012452,0.00037669,4]
[310275459,1704449438667,-394.07011996,0.00037669,7]
[310275460,1704449438676,-62220.18976248,0.0003767,2]
[310275461,1704449438686,-4184.20842677,0.0003777,30]
[310275462,1704449438695,-200.152487,0.000379,9]
[310275463,1704449438705,-43133.01216565,0.00037999,4]
[310275464,1704449438715,-500.0,0.00037999,7]
[310275465,1704449438724,-382.36009339,0.00037999,7]
[310275466,1704449438733,-229.79786207,0.00038,3]
[310275467,1704449438742,-243.38956329,0.00038,3]
[310275468,1704449438750,-300.0,0.00038,15]
[310275469,1704449438759,-300.0,0.00038,15]
[310275470,1704449438769,-300.0,0.00038,15]
[310275472,1704449438779,-300.0,0.00038,15]
[310275473,1704449438788,-300.0,0.00038,15]
[310275474,1704449438797,-300.0,0.00038,15]
[310275476,1704449438806,-300.0,0.00038,15]
[310275477,1704449438815,-379.58002868,0.00038,4]
[310275478,1704449438824,-2140.58677585,0.00038,4]
[310275479,1704449438834,-275.03630129,0.00038,30]
[310275480,1704449438842,-174933.53015163,0.00038,10]
[310275481,1704449438856,-23002.58113733,0.00038,10]
[310275485,1704449441010,-153.0,0.00033,2]
[310275486,1704449441019,-1000.0,0.00034298,7]
[310275487,1704449441029,-518.1476051,0.00038,10]
[310275488,1704449441041,-2337.63320652,0.00038,10]
[310275489,1704449441053,-363.15,0.00038,10]
[310275518,1704449445816,-4162.83171224,0.0003704,3]
[310275678,1704450638155,-154.82968734,0.00029282,4]
[310275679,1704450638165,-362.9910804,0.00029283,2]
[310275681,1704450638175,-0.04641174,0.00029999,2]
[310275684,1704450638212,-3658.83132954,0.00029999,2]
[310275685,1704450638221,-500.0,0.0003,5]
[310275687,1704450638231,-669.69521842,0.0003,5]
[310275688,1704450638240,-27961.89284939,0.00030099,4]
[310275689,1704450638249,-500.0,0.000301,5]
[310275690,1704450638259,-500.0,0.000302,5]
[310275691,1704450638268,-500.0,0.000303,5]
[310275692,1704450638395,-500.0,0.000304,5]
[310275693,1704450638405,-500.0,0.000305,5]
[310275694,1704450638415,-500.0,0.00030584,5]
[310275695,1704450638424,-974.23467953,0.00030589,2]
[310275696,1704450638434,-500.0,0.00031,5]
[310275697,1704450638442,-500.0,0.00032,5]
[310275698,1704450638452,-500.0,0.00033,5]
[310275699,1704450638463,-1000.0,0.00033,33]
[310275700,1704450638472,-153.0,0.00033,2]
[310275701,1704450638481,-200.0,0.00033108,15]
[310275702,1704450638490,-512.58158862,0.00033162,10]
[310275703,1704450638500,-500.0,0.000335,5]
[310275704,1704450638509,-500.0,0.00034,5]
[310275705,1704450638519,-1000.0,0.00034,7]
[310275706,1704450638529,-302.2999368,0.00034193,4]
[310275707,1704450638539,-265.20914203,0.00034193,4]
[310275708,1704450638549,-447.48281592,0.00034193,4]
[310275709,1704450638559,-640.57918296,0.00034193,4]
[310275710,1704450638568,-150.0,0.000343,2]
[310275711,1704450638578,-500.0,0.000345,5]
[310275712,1704450638604,-4000.0,0.00034521,2]
[310275713,1704450638615,-153.0,0.00034521,2]
[310275714,1704450638627,-2650.27448344,0.00035,4]
[310275715,1704450638637,-355.91910944,0.00035,14]
[310275716,1704450638647,-3538.87543689,0.00035,2]
[310275717,1704450638658,-474.80514366,0.00035,4]
[310275718,1704450638667,-1000.0,0.00035,35]
[310275719,1704450638678,-4280.0215874,0.00035,4]
[310275720,1704450638687,-500.0,0.00035,5]
[310275721,1704450638697,-154.82968734,0.00035,4]
[310275722,1704450638708,-11576.87,0.00035158,3]
[310275723,1704450638719,-13892.24,0.00035168,3]
[310275724,1704450638730,-16670.69,0.00035178,3]
[310275725,1704450638745,-12206.9372436,0.00035188,5]
[310275726,1704450638755,-212.14817014,0.00035367,2]
[310275727,1704450638764,-1375.68786875,0.00035367,2]
[310275728,1704450638774,-201.49800947,0.00035367,2]
[310275729,1704450638783,-664.34618391,0.00035367,2]
[310275730,1704450638793,-189.8131954,0.00035367,2]
[310275731,1704450638803,-579.0,0.00035452,2]
[310275732,1704450638813,-500.0,0.00035499,2]
[310275733,1704450638823,-440.18939066,0.00035499,2]
[310275734,1704450638834,-156.78353327,0.00035499,2]
[310275735,1704450638844,-47006.99796797,0.000355,14]
[310275736,1704450638854,-242.50472,0.00035616,120]
[310275737,1704450638864,-4000.0,0.00035798,2]
[310275738,1704450638873,-154.82968734,0.000359,4]
[310275739,1704450638884,-999.60243741,0.00035999,2]
[310275740,1704450638893,-500.0,0.00036,5]
[310275741,1704450638904,-153.0,0.00036356,2]
[310275742,1704450638915,-280.0,0.00036419,15]
[310275743,1704450638925,-52948.7409489,0.00036552,2]
[310275744,1704450638936,-3725.67985436,0.00036552,2]
[310275745,1704450638945,-5000.0,0.00036552,7]
[310275746,1704450638955,-2210.78334982,0.00036552,2]
[310275747,1704450638964,-5000.0,0.00036552,7]
[310275748,1704450638973,-13544.88002678,0.00036552,2]
[310275749,1704450638983,-1631.11386911,0.00036898,4]
[310275750,1704450638993,-590.28475071,0.00036898,2]
[310275751,1704450639002,-1321.39393737,0.00036898,4]
[310275752,1704450639012,-300.99259591,0.00036898,4]
[310275753,1704450639022,-6020.46519048,0.00036898,2]
[310275754,1704450639031,-392.66928205,0.00036898,4]
[310275755,1704450639041,-832.36496317,0.00036898,4]
[310275756,1704450639050,-1087.2919038,0.00036899,4]
[310275757,1704450639060,-32239.14762066,0.000369,2]
[310275758,1704450639069,-1181.95118505,0.00037,7]
[310275759,1704450639079,-1000.0,0.00037,37]
[310275760,1704450639090,-500.0,0.00037,5]
[310275761,1704450639099,-1504.931275,0.00037,2]
[310275762,1704450639108,-282.23116997,0.0003704,3]
[310275763,1704450639117,-4000.0,0.00037075,2]
[310275764,1704450639127,-155.0,0.00037356,2]
[310275765,1704450639136,-4184.20842677,0.0003777,30]
[310275766,1704450639146,-500.0,0.00037899,4]
[310275767,1704450639155,-500.0,0.00037899,4]
[310275768,1704450639165,-176.48012452,0.00037899,4]
[310275769,1704450639174,-394.07011996,0.00037899,7]
[310275770,1704450639183,-62220.18976248,0.000379,2]
[310275771,1704450639193,-200.152487,0.000379,9]
[310275772,1704450639202,-151.0,0.00037921,2]
[310275773,1704450639213,-43133.01216665,0.00037999,4]
[310275774,1704450639222,-500.0,0.00037999,7]
[310275775,1704450639232,-382.36009339,0.00037999,7]
[310275776,1704450639241,-199.11669018,0.00038,3]
[310275777,1704450639251,-155960.97942148,0.00038,30]
[310275782,1704450641160,-1816.95560602,0.00037029,2]
[310275783,1704450641170,-3832.85894273,0.00038,30]
[310275784,1704450641182,-12768.11786077,0.00038,30]
[310275785,1704450641194,-1143.03235867,0.00038,30]
[310275813,1704450646019,-150.83408251,0.00037672,2]
[310275814,1704450646028,-25377.46377089,0.00038,30]
[310275815,1704450646078,-150.83408251,0.00036919,4]
[310275816,1704450646088,-6372.89452828,0.00038,30]
[310275817,1704450646100,-609.4966944,0.00038,30]
[310275865,1704451840391,-154.82968734,0.00033549,5]
[310275867,1704451840401,-150.81901718,0.0003355,120]
[310275869,1704451840410,-1000.0,0.00034,7]
[310275871,1704451840420,-150.81901718,0.00034234,30]
[310275873,1704451840429,-2000.0,0.000343,2]
[310275875,1704451840439,-302.2999368,0.00034309,4]
[310275877,1704451840448,-265.20914203,0.00034309,4]
[310275879,1704451840457,-27961.89284939,0.00034309,4]
[310275881,1704451840466,-2000.0,0.0003431,2]
[310275882,1704451840476,-447.48281592,0.00034312,4]
[310275884,1704451840486,-640.57918296,0.00034313,4]
[310275886,1704451840495,-1321.39393737,0.00034315,4]
[310275888,1704451840504,-300.99259591,0.00034315,4]
[310275890,1704451840513,-392.66928205,0.00034315,4]
[310275892,1704451840523,-1631.11386911,0.00034316,4]
[310275894,1704451840531,-1087.2919038,0.00034318,4]
[310275896,1704451840540,-2000.0,0.0003432,2]
[310275898,1704451840550,-2000.0,0.0003433,2]
[310275900,1704451840561,-2000.0,0.0003434,2]
[310275902,1704451840570,-2000.0,0.0003435,2]
[310275904,1704451840580,-2000.0,0.0003436,2]
[310275906,1704451840591,-2000.0,0.0003437,2]
[310275908,1704451840600,-3333.648382,0.0003438,2]
[310275910,1704451840609,-4000.0,0.00034521,2]
[310275912,1704451840618,-150.81901718,0.00034933,7]
[310275913,1704451840629,-2650.27448344,0.00035,4]
[310275915,1704451840639,-154.82968734,0.00035,4]
[310275917,1704451840648,-590.28475071,0.00035,2]
[310275919,1704451840657,-3538.87543689,0.00035,2]
[310275920,1704451840668,-474.80514366,0.00035,4]
[310275922,1704451840677,-355.91910944,0.00035,14]
[310275923,1704451840687,-4280.0215874,0.00035,4]
[310275924,1704451840696,-700.0,0.00035367,2]
[310275925,1704451840706,-1560.89307364,0.00035367,2]
[310275926,1704451840716,-579.0,0.00035452,2]
[310275927,1704451840726,-500.0,0.00035499,2]
[310275928,1704451840736,-500.0,0.00035499,2]
[310275929,1704451840746,-156.78353327,0.00035499,2]
[310275930,1704451840755,-226.50585948,0.00035499,2]
[310275931,1704451840765,-47006.99796797,0.000355,14]
[310275932,1704451840774,-500.0,0.00035616,2]
[310275933,1704451840784,-242.50472,0.00035616,120]
[310275934,1704451840793,-150.81901718,0.00035646,4]
[310275935,1704451840803,-500.0,0.00035753,2]
[310275936,1704451840813,-4000.0,0.00035798,2]
[310275937,1704451840822,-500.0,0.0003589,2]
[310275938,1704451840832,-154.82968734,0.000359,4]
[310275939,1704451840841,-999.60243741,0.00035999,2]
[310275940,1704451840851,-1000.0,0.00036,36]
[310275941,1704451840860,-153.0,0.00036,2]
[310275942,1704451840870,-500.0,0.00036027,2]
[310275943,1704451840882,-12206.9372436,0.000361,5]
[310275944,1704451840890,-500.0,0.00036164,2]
[310275945,1704451840900,-500.0,0.00036301,2]
[310275946,1704451840910,-150.81901718,0.00036373,2]
[310275947,1704451840920,-500.0,0.00036438,2]
[310275948,1704451840929,-14721.39296222,0.00036496,2]
[310275949,1704451840939,-2329.76401559,0.00036496,2]
[310275950,1704451840948,-5913.98000995,0.00036552,2]
[310275951,1704451840957,-39035.86744011,0.00036552,2]
[310275952,1704451840966,-500.0,0.00036575,2]
[310275953,1704451840977,-500.0,0.00036712,2]
[310275954,1704451840986,-500.0,0.00036849,2]
[310275955,1704451840995,-500.0,0.00036986,2]
[310275956,1704451841005,-4209.5776207,0.00037,7]
[310275957,1704451841015,-1000.0,0.00037,37]
[310275958,1704451841024,-155.0,0.00037,2]
[310275959,1704451841034,-1504.931275,0.00037,2]
[310275960,1704451841044,-4000.0,0.00037075,2]
[310275961,1704451841054,-500.0,0.00037123,2]
[310275962,1704451841063,-500.0,0.0003726,2]
[310275963,1704451841072,-151.0,0.00037275,2]
[310275964,1704451841082,-500.0,0.00037397,2]
[310275965,1704451841091,-500.0,0.00037534,2]
[310275966,1704451841101,-500.0,0.00037671,2]
[310275967,1704451841111,-250.0,0.00037739,15]
[310275968,1704451841120,-4184.20842677,0.0003777,30]
[310275969,1704451841130,-500.0,0.00037808,2]
[310275970,1704451841139,-1000.0,0.0003782,2]
[310275971,1704451841147,-62220.18976248,0.000379,2]
[310275972,1704451841157,-200.152487,0.000379,9]
[310275973,1704451841166,-412.758203,0.00037945,2]
[310275974,1704451841176,-1816.95560602,0.00037989,2]
[310275975,1704451841185,-348.91455321,0.00037995,2]
[310275976,1704451841195,-832.36496317,0.00037997,4]
[310275977,1704451841204,-500.0,0.00037998,4]
[310275978,1704451841213,-206.67767754,0.00037998,4]
[310275979,1704451841223,-500.0,0.00037998,4]
[310275980,1704451841234,-500.0,0.00037998,4]
[310275981,1704451841244,-500.0,0.00037998,4]
[310275982,1704451841253,-394.07011996,0.00037998,7]
[310275983,1704451841263,-435.90351569,0.00037998,7]
[310275984,1704451841272,-43133.01216565,0.00037999,4]
[310275985,1704451841280,-4623.59527826,0.00037999,2]
[310275986,1704451841290,-500.0,0.00037999,7]
[310275987,1704451841299,-155.00825816,0.00037999,7]
[310275988,1704451841307,-500.0,0.00037999,7]
[310275989,1704451841316,-500.0,0.00037999,7]
[310275990,1704451841325,-199.11669018,0.00038,3]
[310275991,1704451841334,-87465.05764296,0.00038,30]
[310275992,1704451841343,-102362.86408358,0.00038,10]
[310276150,1704453040147,-269.82050598,0.00034152,4]
[310276151,1704453040158,-1000.0,0.00034152,7]
[310276152,1704453040167,-154.81422293,0.00034153,5]
[310276153,1704453040177,-150.0,0.000343,2]
[310276154,1704453040186,-2000.0,0.000345,2]
[310276155,1704453040195,-7423.88079943,0.0003452,4]
[310276156,1704453040207,-20538.01204996,0.0003452,4]
[310276157,1704453040216,-4000.0,0.00034521,2]
[310276158,1704453040225,-2650.27448344,0.00035,4]
[310276159,1704453040235,-154.81422293,0.00035,4]
[310276160,1704453040244,-150.80395486,0.00035021,30]
[310276161,1704453040253,-217.18448788,0.00035367,2]
[310276162,1704453040263,-240.15534637,0.00035367,2]
[310276163,1704453040273,-390.22326841,0.00035367,2]
[310276164,1704453040282,-521.0,0.00035452,2]
[310276165,1704453040290,-242.50472,0.00035616,120]
[310276166,1704453040300,-150.80395486,0.00035736,7]
[310276167,1704453040309,-500.0,0.00035752,2]
[310276168,1704453040318,-4000.0,0.00035798,2]
[310276169,1704453040328,-500.0,0.00035889,2]
[310276170,1704453040337,-154.81422293,0.00035999,4]
[310276171,1704453040347,-153.0,0.00036,2]
[310276172,1704453040356,-500.0,0.00036026,2]
[310276173,1704453040366,-12206.9372436,0.000361,5]
[310276174,1704453040375,-500.0,0.00036163,2]
[310276175,1704453040384,-500.0,0.000363,2]
[310276176,1704453040392,-401.1322626,0.00036356,2]
[310276177,1704453040402,-500.0,0.00036437,2]
[310276178,1704453040412,-34920.8,0.00036458,3]
[310276179,1704453040421,-150.80395486,0.00036465,4]
[310276180,1704453040435,-500.0,0.00036487,2]
[310276182,1704453040444,-459.7484733,0.00036487,2]
[310276183,1704453040454,-243.06130286,0.00036487,2]
[310276184,1704453040463,-43400.70309951,0.00036498,2]
[310276185,1704453040472,-5000.0,0.00036498,7]
[310276186,1704453040481,-7711.68746225,0.00036498,2]
[310276187,1704453040491,-5000.0,0.00036498,7]
[310276188,1704453040500,-14858.87322679,0.00036498,2]
[310276189,1704453040509,-2509.001118,0.00036498,2]
[310276190,1704453040518,-500.0,0.00036574,2]
[310276191,1704453040527,-500.0,0.00036711,2]
[310276201,1704453040660,-500.0,0.00036848,2]
[310276202,1704453040674,-500.0,0.00036985,2]
[310276204,1704453040684,-30269.00406112,0.00037,2]
[310276205,1704453040693,-4209.5776207,0.00037,7]
[310276206,1704453040703,-155.0,0.00037,2]
[310276207,1704453040712,-1504.931275,0.00037,2]
[310276208,1704453040721,-4000.0,0.00037075,2]
[310276209,1704453040731,-500.0,0.00037122,2]
[310276210,1704453040740,-150.80395486,0.0003721,2]
[310276211,1704453040749,-500.0,0.00037259,2]
[310276212,1704453040759,-500.0,0.00037396,2]
[310276213,1704453040768,-500.0,0.00037533,2]
[310276214,1704453040781,-500.0,0.0003767,2]
[310276215,1704453040790,-4184.20842677,0.0003777,30]
[310276216,1704453040800,-500.0,0.00037807,2]
[310276217,1704453040809,-348.91455321,0.00037822,2]
[310276218,1704453040818,-1000.0,0.00037894,2]
[310276219,1704453040828,-500.0,0.00037898,4]
[310276220,1704453040837,-624.79620936,0.00037898,4]
[310276221,1704453040846,-500.0,0.00037898,4]
[310276222,1704453040856,-500.0,0.00037898,4]
[310276223,1704453040865,-500.0,0.00037898,4]
[310276224,1704453040875,-197.03505998,0.00037898,7]
[310276225,1704453040885,-445.83678172,0.00037898,7]
[310276226,1704453040894,-62220.18976248,0.00037899,2]
[310276227,1704453040903,-200.152487,0.000379,9]
[310276228,1704453040913,-500.0,0.00037944,2]
[310276229,1704453040923,-250.0,0.0003797,15]
[310276230,1704453040933,-832.36496317,0.00037977,4]
[310276231,1704453040942,-4623.59527826,0.00037979,2]
[310276232,1704453040951,-1271.86892421,0.00037989,2]
[310276233,1704453040961,-26379.98744455,0.00037989,14]
[310276234,1704453040970,-155.17712977,0.00037998,4]
[310276235,1704453040980,-155.0272618,0.00037998,2]
[310276236,1704453040990,-687.54943892,0.00037998,2]
[310276237,1704453041000,-190.10981446,0.00037998,2]
[310276238,1704453041010,-155.31721974,0.00037998,2]
[310276239,1704453041019,-999.60243741,0.00037999,2]
[310276240,1704453041029,-809.40631477,0.00037999,4]
[310276241,1704453041039,-1200.0,0.00037999,2]
[310276242,1704453041049,-1200.0,0.00037999,2]
[310276243,1704453041058,-1200.0,0.00037999,2]
[310276244,1704453041068,-1200.0,0.00037999,2]
[310276245,1704453041078,-1200.0,0.00037999,2]
[310276246,1704453041087,-1200.0,0.00037999,2]
[310276247,1704453041097,-1200.0,0.00037999,2]
[310276249,1704453041106,-1200.0,0.00037999,2]
[310276250,1704453041117,-1200.0,0.00037999,2]
[310276251,1704453041126,-1200.0,0.00037999,2]
[310276252,1704453041136,-900.0,0.00037999,2]
[310276253,1704453041145,-43133.01216665,0.00037999,4]
[310276254,1704453041156,-500.0,0.00037999,7]
[310276255,1704453041166,-500.0,0.00037999,7]
[310276256,1704453041176,-468.59715702,0.00037999,7]
[310276257,1704453041185,-500.0,0.00037999,7]
[310276258,1704453041195,-199.11669018,0.00038,3]
[310276259,1704453041205,-38673.35359139,0.00038,10]
[310276260,1704453041223,-263542.69,0.00038,10]
[310276262,1704453041604,-11185.00000005,0.00038,10]
[310276263,1704453041616,-710.65205076,0.00038,10]
[310276264,1704453041671,-19945.99127014,0.00038,10]
[310276292,1704453043449,-605.260007,0.00036448,3]
[310276307,1704453046350,-24289.5757319,0.00036448,3]
[310276368,1704453887045,1000.0,0.0003,120]
[310276372,1704453925161,1000.0,0.0003,120]
[310276482,1704454238643,-154.81422293,0.00021977,4]
[310276483,1704454238654,-179.88033732,0.00021978,2]
[310276484,1704454238663,-294.24149811,0.00022,4]
[310276485,1704454238672,-150.80395486,0.00031848,7]
[310276486,1704454238681,-150.80395486,0.00032498,4]
[310276487,1704454238690,-150.80395486,0.00033161,2]
[310276488,1704454238700,-163.996451,0.00033581,2]
[310276489,1704454238710,-1152.79562606,0.000345,2]
[310276495,1704454241856,-507.49240344,0.00034,7]
[310276573,1704454246579,-492.50759656,0.00034,7]
[310276574,1704454246589,-847.20437394,0.000345,2]
[310276575,1704454246598,-2821.778556,0.00034521,2]
[310276576,1704454246607,-163.996451,0.00034726,2]
[310276577,1704454246616,-2650.27448344,0.00035,4]
[310276578,1704454246625,-610.52464361,0.00035367,2]
[310276579,1704454246634,-394.7365488,0.00035367,2]
[310276580,1704454246643,-242.50472,0.00035616,120]
[310276581,1704454246652,-155.0,0.00035759,2]
[310276582,1704454246663,-2821.778556,0.00035798,2]
[310276583,1704454246672,-163.996451,0.0003587,2]
[310276584,1704454246681,-154.81422293,0.00035999,4]
[310276585,1704454246690,-298.03197229,0.00036,2]
[310276586,1704454246699,-153.0,0.00036,2]
[310276587,1704454246708,-469.0,0.00036082,2]
[310276588,1704454246718,-150.86716044,0.00036089,2]
[310276589,1704454246727,-12206.9372436,0.000361,5]
[310276590,1704454246736,-189.60592566,0.00036387,2]
[310276591,1704454246745,-171.577363,0.00036445,4]
[310276592,1704454246754,-687.54943892,0.00036446,2]
[310276593,1704454246763,-155.31721974,0.00036446,2]
[310276594,1704454246773,-190.10981446,0.00036447,2]
[310276595,1704454246781,-3221.57303392,0.00036447,2]
[310276596,1704454246791,-282.23116997,0.00036448,3]
[310276597,1704454246801,-500.0,0.00036467,7]
[310276598,1704454246810,-500.0,0.00036467,7]
[310276599,1704454246819,-500.0,0.00036467,7]
[310276600,1704454246829,-500.0,0.00036467,7]
[310276601,1704454246838,-500.0,0.00036467,7]
[310276602,1704454246848,-1000.0,0.00036467,2]
[310276603,1704454246857,-505.37848897,0.00036467,7]
[310276604,1704454246866,-648.93,0.00036467,7]
[310276605,1704454246875,-20000.0,0.00036467,10]
[310276606,1704454246885,-500.0,0.00036467,7]
[310276607,1704454246894,-500.0,0.00036467,7]
[310276608,1704454246902,-500.0,0.00036467,7]
[310276609,1704454246912,-500.0,0.00036467,7]
[310276610,1704454246921,-875.75,0.00036467,7]
[310276611,1704454246930,-500.0,0.00036474,2]
[310276612,1704454246940,-459.7484733,0.00036474,2]
[310276613,1704454246949,-471.83036073,0.00036474,2]
[310276614,1704454246958,-500.0,0.00036474,2]
[310276615,1704454246969,-177.97126906,0.00036474,2]
[310276616,1704454246978,-500.0,0.00036474,7]
[310276617,1704454246987,-253.24683452,0.00036474,7]
[310276618,1704454246997,-560.86847548,0.00036474,7]
[310276619,1704454247006,-500.0,0.00036474,7]
[310276620,1704454247015,-500.0,0.00036474,2]
[310276621,1704454247024,-500.0,0.00036474,7]
[310276622,1704454247033,-500.0,0.00036474,7]
[310276623,1704454247041,-500.0,0.00036474,7]
[310276624,1704454247051,-500.6188856,0.00036474,7]
[310276625,1704454247060,-500.0,0.00036474,7]
[310276626,1704454247070,-1650.17,0.00036485,7]
[310276627,1704454247080,-500.0,0.00036485,7]
[310276628,1704454247089,-555.6,0.00036485,7]
[310276629,1704454247098,-8810.66,0.00036485,7]
[310276630,1704454247108,-500.0,0.00036485,7]
[310276631,1704454247117,-237.4613138,0.00036485,7]
[310276632,1704454247126,-500.0,0.00036485,7]
[310276633,1704454247135,-500.0,0.00036485,7]
[310276634,1704454247145,-1690.1472094,0.00036485,7]
[310276686,1704455432757,-154.81422293,0.00029898,2]
[310276687,1704455432767,-154.81422293,0.00029899,4]
[310276688,1704455432777,-283.42371397,0.0003,3]
[310276689,1704455432787,-2148.83053936,0.0003,2]
[310276690,1704455432797,-500.0,0.0003199,2]
[310276691,1704455432807,-500.0,0.0003199,2]
[310276692,1704455432817,-1000.0,0.00032,30]
[310276694,1704455432826,-163.996451,0.00033333,2]
[310276696,1704455432836,-394.32075493,0.00033937,2]
[310276724,1704455440987,-263.58254607,0.00033937,2]
[310276726,1704455440999,-657.903301,0.00033937,2]
[310276728,1704455441009,-657.903301,0.00033937,2]
[310276729,1704455441018,-657.903301,0.00033937,2]
[310276731,1704455441026,-657.903301,0.00033937,2]
[310276733,1704455441036,-1000.0,0.00034,7]
[310276735,1704455441045,-2493.067134,0.00034521,2]
[310276737,1704455441054,-500.0,0.0003479,15]
[310276739,1704455441063,-500.0,0.00035,15]
[310276741,1704455441073,-175.2682194,0.00035367,2]
[310276744,1704455441082,-156.54112307,0.00035474,2]
[310276746,1704455441092,-181.87854,0.00035616,120]
[310276748,1704455441101,-422.0,0.00035781,2]
[310276750,1704455441111,-2493.067134,0.00035798,2]
[310276752,1704455441120,-2182.78568701,0.000358,5]
[310276754,1704455441136,-10024.15155659,0.000358,5]
[310276756,1704455441146,-154.81422293,0.000359,4]
[310276758,1704455441155,-1432.0,0.00036,2]
[310276760,1704455441165,-1000.0,0.00036,36]
[310276762,1704455441175,-500.0,0.0003611,15]
[310276764,1704455441184,-5000.0,0.00036114,7]
[310276766,1704455441193,-1162.07297699,0.00036114,2]
[310276768,1704455441202,-5000.0,0.00036114,7]
[310276770,1704455441212,-691.20273909,0.00036114,2]
[310276772,1704455441221,-5000.0,0.00036114,7]
[310276774,1704455441231,-517.65,0.00036231,7]
[310276776,1704455441241,-500.0,0.00036231,7]
[310276778,1704455441250,-4905.80332045,0.00036232,2]
[310276780,1704455441260,-809.39759499,0.00036232,7]
[310276785,1704455442011,-2000.0,0.0003452,2]
[310276786,1704455442020,-4190.60240501,0.00036232,7]
[310276788,1704455442029,-500.0,0.00036321,2]
[310276789,1704455442039,-197.03505998,0.00036321,2]
[310276790,1704455442048,-206.78276144,0.00036321,2]
[310276791,1704455442058,-241.00015196,0.00036323,2]
[310276792,1704455442066,-12681.59264758,0.00036362,7]
[310276793,1704455442087,-993.79554174,0.00036362,7]
[310276794,1704455442101,-4426.55181068,0.00036362,7]
[310276795,1704455442111,-500.0,0.00036362,7]
[310276796,1704455442121,-500.0,0.00036362,7]
[310276797,1704455442130,-500.95883747,0.00036364,7]
[310276798,1704455442139,-500.0,0.00036364,2]
[310276799,1704455442150,-1890.68188531,0.00036365,2]
[310276800,1704455442163,-3435.53303438,0.00036365,2]
[310276801,1704455442172,-500.0,0.00036412,7]
[310276802,1704455442180,-501.46677774,0.00036412,7]
[310276803,1704455442189,-500.0,0.00036412,2]
[310276804,1704455442198,-500.0,0.00036423,7]
[310276805,1704455442208,-382.58702161,0.00036423,7]
[310276806,1704455442219,-1015.48297839,0.00036423,7]
[310276807,1704455442228,-568.38431352,0.00036423,7]
[310276808,1704455442238,-500.0,0.00036423,7]
[310276809,1704455442248,-500.0,0.00036423,7]
[310276810,1704455442258,-500.0,0.00036423,7]
[310276811,1704455442267,-48.69624535,0.00036423,7]
[310276812,1704455442278,-465.02388408,0.00036423,7]
[310276813,1704455442287,-604.80598775,0.00036423,7]
[310276814,1704455442296,-500.0,0.00036423,7]
[310276815,1704455442305,-500.88228706,0.00036423,7]
[310276816,1704455442314,-500.0,0.00036423,7]
[310276817,1704455442324,-959.80449996,0.00036423,5]
[310276818,1704455442336,-40.19550004,0.00036423,5]
[310276819,1704455442346,-573.62674539,0.00036423,7]
[310276820,1704455442355,-500.0,0.00036423,7]
[310276821,1704455442364,-500.0,0.00036423,7]
[310276822,1704455442373,-510.47246459,0.00036423,7]
[310276823,1704455442383,-515.59759976,0.00036423,7]
[310276824,1704455442392,-620.78,0.00036423,7]